[Event "Cracovia Chess Festival A 2021"]
[Site "Cracow"]
[Date "2022.01.02"]
[Round "7.32"]
[White "Majek, Kacper"]
[Black "Salna, Aleksandras"]
[Result "0-1"]
[ECO "A01"]
[WhiteElo "2100"]
[BlackElo "2227"]
[Annotator "ChessBase"]
[PlyCount "138"]
[EventDate "2021.12.27"]
[EventCountry "POL"]
[SourceTitle "playchess.com"]
[Source "ChessBase"]
[SourceQuality "1"]
[TimeControl "40/5400+30:1800+30"]

1. b3 {[%emt 0:06:33]} d5 {[%emt 0:00:04]} 2. Bb2 {[%emt 0:00:08]} Bf5 {[%emt 0:00:02]} 3. Nf3 {[%emt 0:00:10]} e6 {[%emt 0:00:02]} 4. g3 {[%emt 0:00:14]} Nf6 {[%emt 0:00:05]} 5. Bg2 {[%emt 0:00:06]} Be7 {[%emt 0:00:05]} 6. O-O {[%emt 0:00:13]} h6 {[%emt 0:00:07]} 7. d3 {[%emt 0:00:08]} O-O {[%emt 0:00:05]} 8. Nbd2 {[%emt 0:00:08]} Bh7 {[%emt 0:00:07]} 9. Qe1 {[%emt 0:00:30]} c5 {[%emt 0:01:01]} 10. e4 {[%emt 0:00:11]} Nc6 {[%emt 0:00:06]} 11. Qe2 {[%emt 0:05:08]} Re8 {[%emt 0:01:14]} 12. Rfd1 {[%emt 0:09:44]} a5 {[%emt 0:04:12]} 13. a4 {[%emt 0:00:19]} Qc7 {[%emt 0:03:23]} 14. Re1 {[%emt 0:14:56]} Bg6 {[%emt 0:07:41]} 15. h3 {[%emt 0:02:24]} Bh5 {[%emt 0:04:28]} 16. Nb1 {[%emt 0:11:28]} d4 {[%emt 0:06:07]} 17. Na3 {[%emt 0:07:05]} Ne5 {[%emt 0:07:27]} 18. g4 {[%emt 0:06:40]} Nxf3+ {[%emt 0:00:39]} 19. Bxf3 {[%emt 0:01:05]} Bg6 {[%emt 0:00:21]} 20. h4 {[%emt 0:01:18]} Nd7 {[%emt 0:02:05]} 21. h5 {[%emt 0:00:28]} Bh7 {[%emt 0:00:19]} 22. e5 {[%emt 0:02:42]} f6 {[%emt 0:10:55]} 23. exf6 {[%emt 0:00:05]} Bxf6 {[%emt 0:00:04]} 24. Nc4 {[%emt 0:00:24]} Re7 {[%emt 0:01:39]} 25. Be4 {[%emt 0:04:47]} Bxe4 {[%emt 0:01:52]} 26. Qxe4 {[%emt 0:00:04]} Bg5 {[%emt 0:12:17]} 27. Bc1 {[%emt 0:00:04]} Rf8 {[%emt 0:02:04]} 28. Ne5 {[%emt 0:07:14]} Nxe5 {[%emt 0:02:25]} 29. Qxe5 {[%emt 0:00:06]} Bxc1 {[%emt 0:00:12]} 30. Raxc1 {[%emt 0:04:41]} Rf4 {[%emt 0:00:17]} 31. Qxc7 {[%emt 0:07:14]} Rxc7 {[%emt 0:00:05]} 32. Re4 {[%emt 0:00:52]} Rcf7 {[%emt 0:00:15]} 33. Rf1 {[%emt 0:00:08]} Rxe4 {[%emt 0:00:04]} 34. dxe4 {[%emt 0:00:20]} Rf3 {[%emt 0:00:02]} 35. Re1 {[%emt 0:07:32]} Rf4 {[%emt 0:00:24]} 36. Kg2 {[%emt 0:00:54]} Rxg4+ {[%emt 0:00:07]} 37. Kh3 {[%emt 0:01:14]} Rg5 {[%emt 0:00:12]} 38. f4 {[%emt 0:01:06]} Rxh5+ {[%emt 0:00:13]} 39. Kg3 {[%emt 0:00:12]} Kf7 {[%emt 0:01:51]} 40. Rc1 {[%emt 0:00:00]} b6 {[%emt 0:00:00]} 41. c3 {[%emt 0:10:30]} dxc3 {[%emt 0:03:41]} 42. Rxc3 {[%emt 0:00:27]} Rh1 {[%emt 0:00:17]} 43. Kf3 {[%emt 0:03:29]} Rd1 {[%emt 0:00:25]} 44. Ke3 {[%emt 0:01:28]} Rd4 {[%emt 0:00:13]} 45. Rc2 {[%emt 0:02:16]} Rb4 {[%emt 0:00:15]} 46. Rc3 {[%emt 0:00:15]} g5 {[%emt 0:00:05]} 47. Rd3 {[%emt 0:00:36]} Rd4 {[%emt 0:00:26]} 48. Rc3 {[%emt 0:00:36]} Kf6 {[%emt 0:00:07]} 49. Rc2 {[%emt 0:01:13]} Rb4 {[%emt 0:00:05]} 50. Rc3 {[%emt 0:01:11]} gxf4+ {[%emt 0:00:15]} 51. Kxf4 {[%emt 0:00:07]} e5+ {[%emt 0:00:05]} 52. Kf3 {[%emt 0:00:36]} Kg5 {[%emt 0:00:19]} 53. Re3 {[%emt 0:00:13]} h5 {[%emt 0:00:05]} 54. Kg3 {[%emt 0:01:12]} h4+ {[%emt 0:00:05]} 55. Kf3 {[%emt 0:01:10]} h3 {[%emt 0:00:04]} 56. Rd3 {[%emt 0:00:19]} h2 {[%emt 0:00:06]} 57. Kg2 {[%emt 0:00:08]} Kf4 {[%emt 0:00:05]} 58. Kxh2 {[%emt 0:01:27]} Kxe4 {[%emt 0:00:04]} 59. Rh3 {[%emt 0:00:17]} c4 {[%emt 0:00:03]} 60. bxc4 {[%emt 0:01:06]} Rxc4 {[%emt 0:00:21]} 61. Rh6 {[%emt 0:00:07]} Rb4 {[%emt 0:00:07]} 62. Kg3 {[%emt 0:00:11]} Ke3 {[%emt 0:00:12]} 63. Rd6 {[%emt 0:00:26]} e4 {[%emt 0:00:11]} 64. Kg4 {[%emt 0:00:04]} Ke2 {[%emt 0:00:16]} 65. Kf5 {[%emt 0:00:13]} e3 {[%emt 0:00:05]} 66. Ke5 {[%emt 0:00:21]} Ke1 {[%emt 0:00:16]} 67. Kd5 {[%emt 0:00:10]} e2 {[%emt 0:00:07]} 68. Kc6 {[%emt 0:00:09]} Rxa4 {[%emt 0:00:05]} 69. Kxb6 {[%emt 0:00:06]} Rf4 0-1

[Event "Cracovia Chess Festival A 2021"]
[Site "Cracow"]
[Date "2022.01.02"]
[Round "7.33"]
[White "Czernek, Tymon"]
[Black "Kolasinski, Krzysztof"]
[Result "1/2-1/2"]
[ECO "C18"]
[WhiteElo "2224"]
[BlackElo "2114"]
[Annotator "ChessBase"]
[PlyCount "64"]
[EventDate "2021.12.27"]
[EventCountry "POL"]
[SourceTitle "playchess.com"]
[Source "ChessBase"]
[SourceQuality "1"]
[TimeControl "40/5400+30:1800+30"]

1. e4 {[%emt 0:00:02]} e6 {[%emt 0:00:26]} 2. d4 {[%emt 0:00:06]} d5 {[%emt 0:00:24]} 3. Nc3 {[%emt 0:00:04]} Bb4 {[%emt 0:00:24]} 4. e5 {[%emt 0:00:08]} c5 {[%emt 0:00:13]} 5. a3 {[%emt 0:00:03]} Bxc3+ {[%emt 0:00:07]} 6. bxc3 {[%emt 0:00:02]} Qa5 {[%emt 0:00:08]} 7. Bd2 {[%emt 0:00:42]} Qa4 {[%emt 0:00:10]} 8. Qb1 {[%emt 0:02:47]} c4 {[%emt 0:00:13]} 9. f4 {[%emt 0:01:07]} Ne7 {[%emt 0:00:21]} 10. Nf3 {[%emt 0:00:34]} Nbc6 {[%emt 0:00:16]} 11. Be2 {[%emt 0:00:56]} h6 {[%emt 0:02:38]} 12. O-O {[%emt 0:01:15]} Bd7 {[%emt 0:03:13]} 13. Qb2 {[%emt 0:02:00]} O-O-O {[%emt 0:00:25]} 14. Rfb1 {[%emt 0:00:24]} b6 {[%emt 0:00:29]} 15. Qc1 {[%emt 0:01:06]} Kb8 {[%emt 0:01:46]} 16. Be1 {[%emt 0:02:04]} Rdf8 {[%emt 0:08:49]} 17. Nh4 {[%emt 0:04:10]} Rfg8 {[%emt 0:07:00]} 18. Bg4 {[%emt 0:01:30]} f5 {[%emt 0:03:48]} 19. exf6 {[%emt 0:02:42]} gxf6 {[%emt 0:00:05]} 20. Bf3 {[%emt 0:00:20]} f5 {[%emt 0:03:28]} 21. Bd1 {[%emt 0:02:13]} Nc8 {[%emt 0:04:10]} 22. Nf3 {[%emt 0:11:47]} Nd6 {[%emt 0:06:17]} 23. Ne5 {[%emt 0:00:46]} Rg7 {[%emt 0:11:18]} 24. Bf3 {[%emt 0:02:35]} Rhg8 {[%emt 0:01:30]} 25. Ra2 {[%emt 0:08:01]} Be8 {[%emt 0:07:07]} 26. Bh4 {[%emt 0:02:54]} Ne4 {[%emt 0:11:48]} 27. Qe3 {[%emt 0:00:12]} Qa5 {[%emt 0:02:54]} 28. Nxc6+ {[%emt 0:03:09]} Bxc6 {[%emt 0:00:02]} 29. Rb4 {[%emt 0:00:10]} Qa6 {[%emt 0:02:51]} 30. a4 {[%emt 0:02:17]} Qc8 {[%emt 0:00:19]} 31. Ra1 {[%emt 0:05:39]} Qe8 {[%emt 0:01:12]} 32. Kh1 {[%emt 0:02:10]} Kb7 {[%emt 0:01:02]} 1/2-1/2

[Event "Cracovia Chess Festival A 2021"]
[Site "Cracow"]
[Date "2022.01.02"]
[Round "7.34"]
[White "Luba, Lukasz"]
[Black "Konyves, Almos"]
[Result "1-0"]
[ECO "A22"]
[WhiteElo "2135"]
[BlackElo "2250"]
[Annotator "ChessBase"]
[PlyCount "53"]
[EventDate "2021.12.27"]
[EventCountry "POL"]
[SourceTitle "playchess.com"]
[Source "ChessBase"]
[SourceQuality "1"]
[TimeControl "40/5400+30:1800+30"]

1. c4 {[%emt 0:00:13]} e5 {[%emt 0:00:05]} 2. Nc3 {[%emt 0:00:05]} Nf6 {[%emt 0:00:05]} 3. g3 {[%emt 0:00:18]} d5 {[%emt 0:00:09]} 4. cxd5 {[%emt 0:00:07]} Nxd5 {[%emt 0:00:04]} 5. Bg2 {[%emt 0:00:11]} Nb6 {[%emt 0:00:05]} 6. Nf3 {[%emt 0:00:43]} Nc6 {[%emt 0:00:07]} 7. d3 {[%emt 0:00:09]} Be7 {[%emt 0:00:18]} 8. O-O {[%emt 0:00:26]} O-O {[%emt 0:00:06]} 9. b3 {[%emt 0:01:56]} Be6 {[%emt 0:02:39]} 10. Bb2 {[%emt 0:01:08]} f5 {[%emt 0:14:25]} 11. Rc1 {[%emt 0:09:57]} Bf6 {[%emt 0:02:49]} 12. e4 {[%emt 0:06:15]} f4 {[%emt 0:16:03]} 13. gxf4 {[%emt 0:06:59]} exf4 {[%emt 0:00:05]} 14. e5 {[%emt 0:00:31]} Nxe5 {[%emt 0:03:04]} 15. Nxe5 {[%emt 0:00:16]} Bxe5 {[%emt 0:00:27]} 16. Re1 {[%emt 0:07:35]} Bxc3 {[%emt 0:02:45]} 17. Bxc3 {[%emt 0:01:36]} Qg5 {[%emt 0:23:45]} 18. h4 {[%emt 0:00:46]} Qg6 {[%emt 0:02:39]} 19. Re5 {[%emt 0:04:13]} Bg4 {[%emt 0:03:32]} 20. h5 {[%emt 0:02:04]} Bxd1 {[%emt 0:12:52]} 21. hxg6 {[%emt 0:00:08]} Bg4 {[%emt 0:00:23]} 22. Re7 {[%emt 0:05:04]} Rf6 {[%emt 0:00:26]} 23. Bxf6 {[%emt 0:00:07]} gxf6 {[%emt 0:00:03]} 24. gxh7+ {[%emt 0:00:15]} Kh8 {[%emt 0:00:04]} 25. Bxb7 {[%emt 0:00:11]} Rd8 {[%emt 0:01:22]} 26. Rcxc7 {[%emt 0:00:26]} Nd7 {[%emt 0:03:10]} 27. Rc8 {[%emt 0:00:17]} 1-0

[Event "Cracovia Chess Festival A 2021"]
[Site "Cracow"]
[Date "2022.01.02"]
[Round "7.35"]
[White "Gombocz, Ferenc Jr."]
[Black "Kotyk, Michael"]
[Result "1/2-1/2"]
[ECO "A14"]
[WhiteElo "2236"]
[BlackElo "2140"]
[Annotator "ChessBase"]
[PlyCount "52"]
[EventDate "2021.12.27"]
[EventCountry "POL"]
[SourceTitle "playchess.com"]
[Source "ChessBase"]
[SourceQuality "1"]
[TimeControl "40/5400+30:1800+30"]

1. c4 {[%emt 0:00:03]} Nf6 {[%emt 0:00:04]} 2. g3 {[%emt 0:00:03]} e6 {[%emt 0:00:05]} 3. Bg2 {[%emt 0:00:07]} d5 {[%emt 0:00:04]} 4. Nf3 {[%emt 0:00:06]} Be7 {[%emt 0:00:03]} 5. O-O {[%emt 0:00:07]} O-O {[%emt 0:00:04]} 6. b3 {[%emt 0:00:17]} c5 {[%emt 0:00:04]} 7. Bb2 {[%emt 0:00:05]} b6 {[%emt 0:00:05]} 8. e3 {[%emt 0:00:06]} Nc6 {[%emt 0:00:08]} 9. Nc3 {[%emt 0:00:07]} Ba6 {[%emt 0:00:07]} 10. Qe2 {[%emt 0:01:40]} Rc8 {[%emt 0:00:05]} 11. d3 {[%emt 0:01:41]} Qc7 {[%emt 0:00:04]} 12. Ne1 {[%emt 0:00:35]} Rfd8 {[%emt 0:01:35]} 13. Nc2 {[%emt 0:01:41]} Qb8 {[%emt 0:00:49]} 14. f4 {[%emt 0:03:42]} d4 {[%emt 0:08:01]} 15. exd4 {[%emt 0:02:55]} Nxd4 {[%emt 0:02:19]} 16. Nxd4 {[%emt 0:00:05]} cxd4 {[%emt 0:00:08]} 17. Ne4 {[%emt 0:01:08]} Bb7 {[%emt 0:02:45]} 18. f5 {[%emt 0:17:03]} e5 {[%emt 0:12:17]} 19. Nxf6+ {[%emt 0:05:29]} Bxf6 {[%emt 0:00:18]} 20. b4 {[%emt 0:00:59]} Bxg2 {[%emt 0:03:25]} 21. Qxg2 {[%emt 0:01:17]} Qd6 {[%emt 0:00:38]} 22. a3 {[%emt 0:02:04]} Bg5 {[%emt 0:00:43]} 23. Qe4 {[%emt 0:01:42]} Be3+ {[%emt 0:00:41]} 24. Kg2 {[%emt 0:00:20]} a5 {[%emt 0:37:11]} 25. b5 {[%emt 0:06:56]} Re8 {[%emt 0:00:22]} 26. Rae1 {[%emt 0:04:22]} Rcd8 {[%emt 0:05:33]} 1/2-1/2

[Event "Cracovia Chess Festival A 2021"]
[Site "Cracow"]
[Date "2022.01.02"]
[Round "7.36"]
[White "Flak, Pawel"]
[Black "Matsumura, Cocoro"]
[Result "1-0"]
[ECO "E10"]
[WhiteElo "2206"]
[BlackElo "2121"]
[Annotator "ChessBase"]
[PlyCount "85"]
[EventDate "2021.12.27"]
[EventCountry "POL"]
[SourceTitle "playchess.com"]
[Source "ChessBase"]
[SourceQuality "1"]
[TimeControl "40/5400+30:1800+30"]

1. d4 {[%emt 0:00:01]} Nf6 {[%emt 0:00:05]} 2. c4 {[%emt 0:00:02]} e6 {[%emt 0:00:04]} 3. Nf3 {[%emt 0:00:03]} d5 {[%emt 0:00:04]} 4. g3 {[%emt 0:00:02]} Bb4+ {[%emt 0:00:04]} 5. Bd2 {[%emt 0:00:03]} a5 {[%emt 0:00:04]} 6. Bg2 {[%emt 0:00:01]} O-O {[%emt 0:00:08]} 7. O-O {[%emt 0:00:02]} dxc4 {[%emt 0:00:18]} 8. Qc2 {[%emt 0:00:05]} Bxd2 {[%emt 0:00:18]} 9. Nbxd2 {[%emt 0:00:02]} b5 {[%emt 0:00:20]} 10. b3 {[%emt 0:00:07]} cxb3 {[%emt 0:00:34]} 11. Qxb3 {[%emt 0:00:01]} c6 {[%emt 0:01:33]} 12. e4 {[%emt 0:01:20]} Nbd7 {[%emt 0:01:27]} 13. e5 {[%emt 0:00:22]} Nd5 {[%emt 0:00:58]} 14. Ne4 {[%emt 0:00:02]} N7b6 {[%emt 0:03:30]} 15. Qc2 {[%emt 0:01:44]} Ba6 {[%emt 0:10:32]} 16. Neg5 {[%emt 0:15:44]} g6 {[%emt 0:00:45]} 17. Rfd1 {[%emt 0:01:24]} Qe7 {[%emt 0:04:30]} 18. Ne4 {[%emt 0:01:38]} Rfc8 {[%emt 0:04:41]} 19. h4 {[%emt 0:13:25]} Nd7 {[%emt 0:04:59]} 20. Rac1 {[%emt 0:01:54]} Rab8 {[%emt 0:05:06]} 21. Bf1 {[%emt 0:00:32]} N5b6 {[%emt 0:05:07]} 22. Nd6 {[%emt 0:01:05]} Rc7 {[%emt 0:10:00]} 23. Bxb5 {[%emt 0:00:09]} Bb7 {[%emt 0:03:25]} 24. Be2 {[%emt 0:22:35]} c5 {[%emt 0:06:08]} 25. Qd2 {[%emt 0:00:02]} a4 {[%emt 0:06:32]} 26. Nxb7 {[%emt 0:15:17]} Rbxb7 {[%emt 0:01:26]} 27. Ba6 {[%emt 0:03:47]} Rb8 {[%emt 0:03:48]} 28. Bb5 {[%emt 0:03:35]} Rbc8 {[%emt 0:02:01]} 29. h5 {[%emt 0:05:31]} c4 {[%emt 0:03:52]} 30. hxg6 {[%emt 0:02:35]} hxg6 {[%emt 0:00:32]} 31. Kg2 {[%emt 0:00:21]} c3 {[%emt 0:02:13]} 32. Qh6 {[%emt 0:00:02]} Qf8 {[%emt 0:00:07]} 33. Qh4 {[%emt 0:00:31]} a3 {[%emt 0:01:57]} 34. Rh1 {[%emt 0:00:44]} Qg7 {[%emt 0:00:04]} 35. Ng5 {[%emt 0:00:51]} Nd5 {[%emt 0:04:27]} 36. Ne4 {[%emt 0:01:55]} Kf8 {[%emt 0:05:57]} 37. Bxd7 {[%emt 0:00:43]} Rxd7 {[%emt 0:00:01]} 38. Qh8+ {[%emt 0:00:18]} Qg8 {[%emt 0:00:05]} 39. Nf6 {[%emt 0:00:19]} Nxf6 {[%emt 0:01:19]} 40. Qxf6 {[%emt 0:00:00]} Rxd4 {[%emt 0:00:00]} 41. Rh8 {[%emt 0:00:18]} Rd2 {[%emt 0:01:02]} 42. Rxg8+ {[%emt 0:00:23]} Kxg8 {[%emt 0:00:01]} 43. Rh1 {[%emt 0:00:07]} 1-0

[Event "Cracovia Chess Festival A 2021"]
[Site "Cracow"]
[Date "2022.01.02"]
[Round "7.39"]
[White "Bombek, Peter"]
[Black "Garbowski, Jakub"]
[Result "0-1"]
[ECO "A45"]
[WhiteElo "2099"]
[BlackElo "2145"]
[Annotator "ChessBase"]
[PlyCount "98"]
[EventDate "2021.12.27"]
[EventCountry "POL"]
[SourceTitle "playchess.com"]
[Source "ChessBase"]
[SourceQuality "1"]
[TimeControl "40/5400+30:1800+30"]

1. d4 {[%emt 0:00:03]} Nf6 {[%emt 0:01:30]} 2. Bg5 {[%emt 0:00:01]} Ne4 {[%emt 0:04:37]} 3. Bf4 {[%emt 0:00:03]} d5 {[%emt 0:00:07]} 4. e3 {[%emt 0:00:11]} c5 {[%emt 0:01:14]} 5. Bd3 {[%emt 0:00:35]} Nf6 {[%emt 0:02:33]} 6. c3 {[%emt 0:00:55]} Nc6 {[%emt 0:01:28]} 7. Nd2 {[%emt 0:01:18]} e6 {[%emt 0:06:55]} 8. Ngf3 {[%emt 0:01:10]} h6 {[%emt 0:00:56]} 9. O-O {[%emt 0:01:45]} Bd6 {[%emt 0:06:14]} 10. Bxd6 {[%emt 0:06:18]} Qxd6 {[%emt 0:00:49]} 11. e4 {[%emt 0:00:26]} dxe4 {[%emt 0:08:52]} 12. Nxe4 {[%emt 0:00:48]} Nxe4 {[%emt 0:00:34]} 13. Bxe4 {[%emt 0:00:02]} O-O {[%emt 0:01:03]} 14. dxc5 {[%emt 0:06:24]} Qxc5 {[%emt 0:05:16]} 15. Bxc6 {[%emt 0:02:13]} Qxc6 {[%emt 0:01:17]} 16. Qd4 {[%emt 0:00:49]} f6 {[%emt 0:05:39]} 17. Rfd1 {[%emt 0:02:11]} e5 {[%emt 0:04:10]} 18. Qd6 {[%emt 0:02:43]} Qxd6 {[%emt 0:04:01]} 19. Rxd6 {[%emt 0:00:07]} Kf7 {[%emt 0:00:15]} 20. h3 {[%emt 0:07:41]} Be6 {[%emt 0:01:38]} 21. Rad1 {[%emt 0:00:34]} Rac8 {[%emt 0:05:27]} 22. R1d2 {[%emt 0:03:38]} g5 {[%emt 0:08:26]} 23. Ne1 {[%emt 0:02:22]} Ke7 {[%emt 0:05:24]} 24. a3 {[%emt 0:02:15]} Rfd8 {[%emt 0:01:35]} 25. Rxd8 {[%emt 0:00:47]} Rxd8 {[%emt 0:00:06]} 26. Rxd8 {[%emt 0:00:32]} Kxd8 {[%emt 0:00:06]} 27. g4 {[%emt 0:02:39]} f5 {[%emt 0:04:07]} 28. gxf5 {[%emt 0:00:32]} Bxf5 {[%emt 0:00:07]} 29. Kh2 {[%emt 0:02:38]} Ke7 {[%emt 0:02:08]} 30. Ng2 {[%emt 0:01:58]} h5 {[%emt 0:04:23]} 31. h4 {[%emt 0:08:21]} Kf6 {[%emt 0:01:43]} 32. Kg3 {[%emt 0:00:32]} Be4 {[%emt 0:01:12]} 33. Ne3 {[%emt 0:01:07]} gxh4+ {[%emt 0:03:16]} 34. Kxh4 {[%emt 0:00:19]} Bf3 {[%emt 0:00:10]} 35. a4 {[%emt 0:09:36]} Be2 {[%emt 0:05:27]} 36. b4 {[%emt 0:03:14]} Ke6 {[%emt 0:00:49]} 37. Kg5 {[%emt 0:01:58]} Bf3 {[%emt 0:01:59]} 38. c4 {[%emt 0:00:56]} a5 {[%emt 0:00:50]} 39. bxa5 {[%emt 0:01:38]} Kd6 {[%emt 0:01:06]} 40. Kf5 {[%emt 0:00:00]} h4 {[%emt 0:00:00]} 41. c5+ {[%emt 0:08:17]} Kxc5 {[%emt 0:07:12]} 42. Kxe5 {[%emt 0:00:07]} h3 {[%emt 0:03:15]} 43. Nf1 {[%emt 0:02:18]} Kb4 {[%emt 0:01:01]} 44. Nh2 {[%emt 0:01:13]} Bd1 {[%emt 0:06:31]} 45. Kd6 {[%emt 0:01:39]} Kxa5 {[%emt 0:00:53]} 46. Kc7 {[%emt 0:00:10]} b6 {[%emt 0:00:34]} 47. f4 {[%emt 0:00:47]} Bxa4 {[%emt 0:00:49]} 48. f5 {[%emt 0:00:10]} Be8 {[%emt 0:00:53]} 49. f6 {[%emt 0:00:55]} b5 {[%emt 0:00:44]} 0-1

[Event "Cracovia Chess Festival A 2021"]
[Site "Cracow"]
[Date "2022.01.02"]
[Round "7.40"]
[White "Dwilewicz, Katarzyna"]
[Black "Gbyl, Andrzej"]
[Result "1-0"]
[ECO "B18"]
[WhiteElo "2100"]
[BlackElo "2228"]
[Annotator "ChessBase"]
[PlyCount "37"]
[EventDate "2021.12.27"]
[EventCountry "POL"]
[SourceTitle "playchess.com"]
[Source "ChessBase"]
[SourceQuality "1"]
[TimeControl "40/5400+30:1800+30"]

1. e4 {[%emt 0:00:03]} c6 {[%emt 0:00:04]} 2. d4 {[%emt 0:00:12]} d5 {[%emt 0:00:06]} 3. Nc3 {[%emt 0:00:39]} dxe4 {[%emt 0:00:05]} 4. Nxe4 {[%emt 0:00:04]} Bf5 {[%emt 0:00:07]} 5. Ng3 {[%emt 0:00:18]} Bg6 {[%emt 0:00:12]} 6. Nh3 {[%emt 0:00:10]} e6 {[%emt 0:00:37]} 7. Nf4 {[%emt 0:00:50]} Bd6 {[%emt 0:00:14]} 8. Ngh5 {[%emt 0:00:46]} Bxh5 {[%emt 0:00:22]} 9. Nxh5 {[%emt 0:00:07]} g6 {[%emt 0:00:11]} 10. Ng3 {[%emt 0:02:22]} Qc7 {[%emt 0:02:04]} 11. Qf3 {[%emt 0:03:37]} Nd7 {[%emt 0:03:15]} 12. Ne4 {[%emt 0:02:12]} Ne7 {[%emt 0:02:43]} 13. Bc4 {[%emt 0:05:33]} Nf5 {[%emt 0:03:18]} 14. c3 {[%emt 0:05:18]} h5 {[%emt 0:08:19]} 15. Nxd6+ {[%emt 0:02:19]} Qxd6 {[%emt 0:00:40]} 16. Bf4 {[%emt 0:02:48]} Qe7 {[%emt 0:03:47]} 17. O-O-O {[%emt 0:00:51]} O-O-O {[%emt 0:01:55]} 18. Qxc6+ {[%emt 0:04:38]} bxc6 {[%emt 0:00:12]} 19. Ba6# {[%emt 0:00:04]} 1-0

[Event "Cracovia Chess Festival A 2021"]
[Site "Cracow"]
[Date "2022.01.03"]
[Round "8.2"]
[White "Kozak, Antoni"]
[Black "Jarmula, Lukasz"]
[Result "0-1"]
[ECO "A06"]
[WhiteElo "2356"]
[BlackElo "2426"]
[Annotator "ChessBase"]
[PlyCount "100"]
[EventDate "2021.12.27"]
[EventCountry "POL"]
[SourceTitle "playchess.com"]
[Source "ChessBase"]
[SourceQuality "1"]
[TimeControl "40/5400+30:1800+30"]

1. Nf3 {[%emt 0:06:59]} d5 {[%emt 0:00:12]} 2. e3 {[%emt 0:00:57]} Nf6 {[%emt 0:01:51]} 3. c4 {[%emt 0:00:10]} e6 {[%emt 0:00:05]} 4. b3 {[%emt 0:01:47]} c5 {[%emt 0:00:41]} 5. Bb2 {[%emt 0:01:43]} Nc6 {[%emt 0:00:22]} 6. cxd5 {[%emt 0:02:44]} exd5 {[%emt 0:00:13]} 7. Be2 {[%emt 0:03:36]} Bd6 {[%emt 0:01:05]} 8. d4 {[%emt 0:05:06]} cxd4 {[%emt 0:06:20]} 9. Nxd4 {[%emt 0:00:59]} Bb4+ {[%emt 0:00:44]} 10. Bc3 {[%emt 0:05:54]} Qa5 {[%emt 0:01:27]} 11. Qd2 {[%emt 0:03:33]} Bxc3 {[%emt 0:04:46]} 12. Nxc3 {[%emt 0:01:47]} Nxd4 {[%emt 0:00:33]} 13. Qxd4 {[%emt 0:00:10]} O-O {[%emt 0:00:09]} 14. O-O {[%emt 0:09:00]} Be6 {[%emt 0:00:37]} 15. Rac1 {[%emt 0:07:50]} Ne4 {[%emt 0:11:28]} 16. Qa4 {[%emt 0:01:29]} Qxc3 {[%emt 0:06:44]} 17. Rxc3 {[%emt 0:03:50]} Nxc3 {[%emt 0:00:09]} 18. Qb4 {[%emt 0:05:55]} Nxe2+ {[%emt 0:00:17]} 19. Kh1 {[%emt 0:00:01]} Rfc8 {[%emt 0:00:38]} 20. Qxb7 {[%emt 0:00:03]} Nc3 {[%emt 0:00:48]} 21. Rc1 {[%emt 0:02:02]} Nxa2 {[%emt 0:02:42]} 22. Rxc8+ {[%emt 0:00:03]} Rxc8 {[%emt 0:00:07]} 23. h3 {[%emt 0:00:02]} a5 {[%emt 0:01:36]} 24. Qb5 {[%emt 0:00:48]} Nc1 {[%emt 0:00:39]} 25. g4 {[%emt 0:00:03]} h6 {[%emt 0:03:14]} 26. f4 {[%emt 0:00:06]} g6 {[%emt 0:03:25]} 27. e4 {[%emt 0:03:20]} dxe4 {[%emt 0:08:03]} 28. f5 {[%emt 0:00:04]} Bxb3 {[%emt 0:00:46]} 29. Qd7 {[%emt 0:00:57]} Rc3 {[%emt 0:10:31]} 30. Qd8+ {[%emt 0:12:13]} Kh7 {[%emt 0:01:39]} 31. fxg6+ {[%emt 0:00:05]} fxg6 {[%emt 0:00:29]} 32. Qe7+ {[%emt 0:00:05]} Kg8 {[%emt 0:00:06]} 33. Qe8+ {[%emt 0:00:05]} Kh7 {[%emt 0:00:05]} 34. Qe7+ {[%emt 0:00:03]} Kg8 {[%emt 0:00:07]} 35. Qf6 {[%emt 0:11:24]} Ne2 {[%emt 0:15:30]} 36. Qxg6+ {[%emt 0:00:47]} Kf8 {[%emt 0:01:00]} 37. Qxh6+ {[%emt 0:00:05]} Ke7 {[%emt 0:00:33]} 38. Kh2 {[%emt 0:01:43]} Rf3 {[%emt 0:01:42]} 39. Qg5+ {[%emt 0:01:09]} Ke6 {[%emt 0:01:56]} 40. Qxa5 {[%emt 0:00:00]} Rf2+ {[%emt 0:00:00]} 41. Kh1 {[%emt 0:01:06]} Bd5 {[%emt 0:07:30]} 42. Qb6+ {[%emt 0:02:41]} Ke5 {[%emt 0:01:19]} 43. Qe3 {[%emt 0:00:03]} Nd4 {[%emt 0:05:24]} 44. Qg5+ {[%emt 0:04:40]} Kd6 {[%emt 0:00:38]} 45. Qd8+ {[%emt 0:00:17]} Kc5 {[%emt 0:01:05]} 46. Qa5+ {[%emt 0:00:22]} Nb5 {[%emt 0:03:18]} 47. Kg1 {[%emt 0:00:24]} e3 {[%emt 0:00:39]} 48. Qd8 {[%emt 0:00:34]} Nc3 {[%emt 0:01:04]} 49. Qe7+ {[%emt 0:04:33]} Kd4 {[%emt 0:01:03]} 50. Qf7 {[%emt 0:00:11]} Ne2# 0-1